bitfinex-derivatives/quotes_ETHF0:USTF0_20250421
["timestamp","ask_amount","ask_price","bid_price","bid_amount"]
[1745258625654,10.34155,1575.6,1575.3,1.26942]
[1745258625851,1.26944,1575.3,1575.2,9.46746]
[1745258626251,1.26932,1575.5,1575.4,1.26928]
[1745258626559,3.2078,1575.6,1575.3,1.26944]
[1745258626560,1.26936,1575.4,1575.3,1.26944]
[1745258627154,1.26936,1575.4,1575.3,42.06944]
[1745258627752,1.9129,1575.5,1575.3,40.8]
[1745258627952,3.18223,1575.5,1575.4,1.9337]
[1745258628457,1.26928,1575.5,1575.4,8.2833]
[1745258628652,1.26928,1575.5,1575.4,9.55258]
[1745258628857,4.47708,1575.5,1575.4,8.2833]
[1745258629059,4.47708,1575.5,1575.4,1.9337]
[1745258629851,4.47708,1575.5,1575.4,9.55266]
[1745258630053,1.26928,1575.5,1575.4,9.55266]
[1745258630859,1.26928,1575.5,1575.4,8.2833]
[1745258631053,1.26928,1575.5,1575.4,9.55266]
[1745258631552,1.27871596,1575.6,1575.5,1.26928]
[1745258631753,0.00951596,1575.6,1575.5,9.61258]
[1745258634555,6.17527517,1576.8,1576.6,6.59533]
[1745258634753,1.26831,1576.7,1576.6,13.66211596]
[1745258634951,1.26831,1576.7,1576.6,7.04769596]
[1745258635149,7.44357517,1576.8,1576.6,54.19729596]
[1745258635351,6.17527517,1576.8,1576.7,10.82571]
[1745258635757,6.17527517,1576.8,1576.7,12.53689]
[1745258636156,8.2707558,1576.8,1576.7,11.26858]
[1745258636359,8.2707558,1576.8,1576.7,9.32909]
[1745258636660,6.18621455,1576.9,1576.8,7.61783]
[1745258636850,6.18621455,1576.9,1576.8,9.62293]
[1745258637053,6.18621455,1576.9,1576.8,55.42293]
[1745258638259,6.18621455,1576.9,1576.8,50.42293]
[1745258638559,6.18621455,1576.9,1576.8,55.42293]
[1745258639562,12.4061337,1577.2,1577.1,1.26799]
[1745258639763,12.4061337,1577.2,1577.1,9.79979]
[1745258640059,12.4061337,1577.2,1577.1,16.14939]
[1745258640660,1.26763,1577.6,1577.3,1.26781]
[1745258640856,3.26746,1577.6,1577.4,5.324]
[1745258641055,4.47532,1577.7,1577.5,1.26767]
[1745258641251,5.45625,1577.8,1577.6,1.26759]
[1745258641453,5.45625,1577.8,1577.6,7.61719]
[1745258641653,5.45625,1577.8,1577.6,6.3496]
[1745258641852,3.25925,1577.8,1577.6,7.61715]
[1745258642053,3.25925,1577.8,1577.7,6.3496]
[1745258642254,9.40525,1577.8,1577.7,6.3496]
[1745258642460,11.41615,1577.8,1577.6,1.26755]
[1745258642660,1.26763,1577.6,1577.4,6.60119596]
[1745258642960,1.26759,1577.6,1577.5,7.61727]
[1745258643162,6.146,1577.6,1577.5,7.61727]
[1745258643363,6.146,1577.6,1577.5,15.82507]
[1745258644162,4.0535,1578.2,1578.0,1.26724]
[1745258644366,7.2613,1578.2,1577.9,5.323]
[1745258644664,4.47507,1578.0,1577.9,5.323]
[1745258645164,9.3538,1578.0,1577.9,5.323]
[1745258645361,6.146,1578.0,1577.9,12.93995]
[1745258645862,7.41327,1578.0,1577.9,11.6726]
[1745258646254,1.26727,1578.0,1577.9,12.93995]
[1745258646451,7.2613,1578.2,1577.9,11.6726]
[1745258646657,2.0723,1578.3,1578.2,1.26711]
[1745258646857,1.26682,1578.6,1578.2,11.69755]
[1745258647055,3.2078,1578.7,1578.5,1.26682]
[1745258647558,1.26665,1578.8,1578.6,7.61636]
[1745258647754,3.2078,1578.9,1578.6,7.61632]
[1745258647755,6.43222,1578.9,1578.6,7.61632]
[1745258647965,1.26666,1578.8,1578.7,6.3496]
[1745258648161,3.19416,1578.8,1578.6,7.61638]
[1745258648665,1.9275,1578.8,1578.7,7.61631]
[1745258648860,1.9275,1578.8,1578.7,1.26671]
[1745258649056,3.19413,1578.8,1578.7,6.3496]
[1745258649257,9.34013,1578.8,1578.7,6.3496]
[1745258649461,6.146,1578.8,1578.7,7.61631]
[1745258650162,6.50553,1579.1,1578.7,7.61631]
[1745258650462,1.26652,1579.0,1578.8,15.0106]
[1745258650664,1.9275,1578.9,1578.8,8.661]
[1745258650959,1.26647,1579.0,1578.9,6.3496]
[1745258651159,9.42097,1579.0,1578.9,8.2761]
[1745258651361,9.42097,1579.0,1578.9,6.3496]
[1745258651763,8.1545,1579.0,1578.9,6.3496]
[1745258651963,6.146,1579.0,1578.9,6.3496]
[1745258652164,6.146,1579.0,1578.9,9.54265]
[1745258652869,7.41247,1579.0,1578.9,9.54265]
[1745258653176,10.62024,1579.1,1579.0,1.26647]
[1745258653471,9.3538,1579.1,1579.0,8.2761]
[1745258653765,10.62019,1579.1,1579.0,9.54257]
[1745258653972,10.62019,1579.1,1579.0,8.2761]
[1745258654674,9.3538,1579.1,1579.0,9.54257]
[1745258654866,10.62019,1579.1,1579.0,8.2761]
[1745258656059,9.3538,1579.1,1579.0,9.54257]
[1745258656268,10.62019,1579.1,1579.0,9.54257]
[1745258656873,10.62019,1579.1,1579.0,8.2761]
[1745258657073,10.62019,1579.1,1579.0,9.54257]
[1745258657975,9.3538,1579.1,1579.0,9.54257]
[1745258658181,6.146,1579.1,1579.0,12.75037]
[1745258658468,6.146,1579.1,1579.0,17.75037]
[1745258658869,6.146,1579.1,1579.0,18.36374734]
[1745258659064,6.146,1579.1,1579.0,12.75037]
[1745258659272,1.26639,1579.1,1579.0,16.8399]
[1745258659459,3.2078,1579.3,1579.0,18.10633]
[1745258659665,1.26634,1579.2,1579.1,6.3496]
[1745258659861,3.16598,1579.1,1578.6,3.2078]
[1745258660173,1.26659,1578.9,1578.8,6.3496]
[1745258660368,1.26659,1578.9,1578.7,3.46454568]
[1745258660569,3.42039,1578.9,1578.8,6.3496]
[1745258660770,3.2078,1579.0,1578.8,11.7056]
[1745258660966,1.26655,1578.9,1578.8,11.7056]
[1745258661168,6.146,1579.0,1578.9,7.61615]
[1745258661364,6.146,1579.0,1578.9,10.82395]
[1745258662276,5.3616,1579.4,1579.2,1.26627]
[1745258662468,1.26631,1579.2,1579.1,6.62136]
[1745258662779,1.26631,1579.2,1579.1,11.7046]
[1745258662972,8.51772972,1579.4,1579.2,1.26628]
[1745258662973,5.35233972,1579.4,1579.2,1.26628]
[1745258663278,6.61853972,1579.4,1579.2,9.66345]
[1745258663477,2.1545,1579.5,1579.3,6.3496]
[1745258663676,6.37203,1580.0,1579.6,1.26597]
[1745258663977,2.1884,1579.9,1579.7,1.26587]
[1745258664173,3.45419,1579.9,1579.7,1.26587]
[1745258664370,2.1884,1579.9,1579.8,7.61543]
[1745258664572,2.1884,1579.9,1579.6,2.04151596]
[1745258664573,1.26583,1579.8,1579.7,11.7046]
[1745258664773,4.47363,1579.8,1579.7,5.355]
[1745258664973,9.47363,1579.8,1579.7,5.355]
[1745258665173,15.61963,1579.8,1579.7,5.355]
[1745258666380,10.61963,1579.8,1579.7,12.97051]
[1745258666572,10.61963,1579.8,1579.7,11.7046]
[1745258667174,6.146,1579.8,1579.7,12.97051]
[1745258667373,10.61963,1579.8,1579.7,5.355]
[1745258667980,1.26591,1579.7,1579.6,0.00951596]
[1745258668178,5.33931,1579.7,1579.6,6.35911596]
[1745258668379,1.26615,1579.4,1579.3,6.62021]
[1745258668573,1.26615,1579.4,1579.3,11.7036]
[1745258668973,3.28885,1579.4,1579.3,5.354]
[1745258669174,9.43485,1579.4,1579.3,11.7036]
[1745258669379,9.43485,1579.4,1579.3,6.62023]
[1745258669580,9.43485,1579.4,1579.3,1.26623]
[1745258669880,9.43485,1579.4,1579.3,6.3496]
[1745258670079,9.43485,1579.4,1579.3,7.61583]
[1745258670382,1.26623,1579.3,1579.2,0.00951596]
[1745258670580,3.35743,1579.3,1579.2,7.62542596]
[1745258670782,3.35743,1579.3,1579.2,6.35911596]
[1745258670979,3.35743,1579.3,1579.2,0.00951596]
[1745258671179,9.50343,1579.3,1579.2,0.00951596]
[1745258672082,12.71123,1579.3,1579.2,0.00951596]
[1745258672280,1.26639,1579.1,1579.0,4.45398]
[1745258672472,4.47419,1579.1,1579.0,4.45398]
[1745258672782,9.47419,1579.1,1579.0,4.45398]
[1745258672984,1.26663,1578.8,1578.7,2.1891]
[1745258673279,3.2078,1578.9,1578.8,6.3496]
[1745258673484,1.2665,1579.0,1578.9,1.26648]
[1745258673787,1.26655,1578.9,1578.8,6.3496]
[1745258673986,6.55925,1578.9,1578.8,6.3496]
[1745258674284,12.70525,1578.9,1578.8,6.3496]
[1745258674485,1.26669,1578.8,1578.7,1.26666]
[1745258674686,1.26669,1578.8,1578.7,6.3496]
[1745258675077,9.49759,1578.8,1578.7,6.3496]
[1745258675278,1.26671,1578.7,1578.6,0.00951596]
[1745258675576,6.54011,1578.7,1578.6,6.35911596]
[1745258675782,1.26711,1578.2,1578.1,1.26713]
[1745258676084,1.26711,1578.2,1578.1,2.24812788]
[1745258676383,7.41311,1578.2,1578.1,2.24812788]
[1745258676687,7.41311,1578.2,1578.1,3.51531788]
[1745258677182,7.41311,1578.2,1578.1,2.24812788]
[1745258677379,1.26719,1578.1,1578.0,3.27162596]
[1745258677776,1.26719,1578.1,1578.0,5.51975384]
[1745258678477,1.26718,1578.2,1578.1,1.26716]
[1745258678784,1.26719,1578.1,1578.0,3.27161596]
[1745258679180,7.41317,1578.2,1578.1,3.51528788]
[1745258679886,7.41317,1578.2,1578.1,2.24812788]
[1745258680986,1.26719,1578.1,1578.0,2.00441596]
[1745258681189,11.64109,1578.1,1578.0,5.96e-06]
[1745258681392,22.10876705,1578.1,1578.0,5.96e-06]
[1745258681581,28.86594292,1578.1,1578.0,5.96e-06]
[1745258682890,28.86593458,1578.1,1578.0,5.96e-06]
[1745258684585,28.86601317,1578.1,1578.0,5.96e-06]
[1745258684991,3.2078,1577.6,1576.4,3.2078]
[1745258685186,63.36375,1578.0,1576.5,4.38122788]
[1745258685187,3.2078,1576.9,1576.5,4.38122788]
[1745258685487,3.16979,1577.2,1576.5,4.38122788]
[1745258685488,1.2683,1576.8,1576.6,1.26837]
[1745258685787,4.47603,1576.8,1576.7,3.40141]
[1745258685986,4.47603,1576.8,1576.7,4.38122788]
[1745258686389,0.00951596,1576.9,1576.8,1.26823]
[1745258686588,1.27766596,1576.9,1576.8,3.51635788]
[1745258686786,1.27766596,1576.9,1576.8,2.24812788]
[1745258687086,1.27766596,1576.9,1576.7,2.1331]
[1745258687087,1.26823,1576.8,1576.7,2.1331]
[1745258687288,4.47603,1576.8,1576.7,4.38122788]
[1745258687489,6.55163,1576.8,1576.7,4.38122788]
[1745258687692,1.26831,1576.7,1576.6,0.00951596]
[1745258687991,3.31371,1576.7,1576.6,0.00951596]
[1745258688197,14.69371,1576.7,1576.6,5.96e-06]
[1745258691690,12.64831,1576.7,1576.6,2.24813384]
[1745258692289,6.50231,1576.7,1576.6,2.24813384]
[1745258692893,6.50231,1576.7,1576.6,5.96e-06]
[1745258693087,14.70891,1576.7,1576.6,5.96e-06]
[1745258695886,14.70891,1576.7,1576.6,2.24813384]
[1745258696794,25.80485703,1576.7,1576.6,5.96e-06]
[1745258697181,1.26856,1576.4,1576.3,0.66476596]
[1745258697389,1.26888,1576.0,1575.9,4.2225]
[1745258697785,1.26888,1576.0,1575.9,7.73958788]
[1745258697989,1.26888,1576.0,1575.9,6.47062788]
[1745258698892,1.26888,1576.0,1575.9,7.73958788]
[1745258699689,1.26888,1576.0,1575.9,12.73958788]
[1745258700494,1.26888,1576.0,1575.9,14.79398788]
[1745258701996,1.26888,1576.0,1575.9,9.79398788]
[1745258702295,0.00951596,1576.1,1576.0,1.26888]
[1745258702483,1.26861,1576.4,1576.3,1.26858]
[1745258702691,1.26855,1576.5,1576.3,1.26858]
[1745258702901,4.47623,1576.6,1576.4,4.27352788]
[1745258703199,1.26843,1576.6,1576.5,1.26848]
[1745258703398,1.26843,1576.6,1576.5,5.54200788]
[1745258703599,4.47623,1576.6,1576.5,5.54200788]
[1745258703893,0.00951596,1576.7,1576.6,1.2684]
[1745258704094,3.21731596,1576.7,1576.6,3.51652788]
[1745258704403,0.00951596,1576.7,1576.6,49.31652788]
[1745258704895,1.27782596,1576.7,1576.6,49.31652788]
[1745258705094,3.21731596,1576.7,1576.6,3.51652788]
[1745258705283,0.00951596,1576.7,1576.6,8.51652788]
[1745258705597,0.00951596,1576.7,1576.6,52.52432788]
[1745258705988,3.2078,1577.1,1577.0,1.26807]
[1745258706198,4.47579,1577.1,1577.0,1.26807]
[1745258706389,4.47579,1577.1,1577.0,3.51619788]
[1745258706797,3.2078,1577.3,1577.2,1.26789]
[1745258707292,3.2078,1577.3,1577.2,3.51601788]
[1745258707601,0.00951596,1577.4,1577.3,1.26783]
[1745258707794,0.00951596,1577.4,1577.3,3.51595788]
[1745258708189,1.27726596,1577.4,1577.3,2.24812788]
[1745258708396,4.48506596,1577.4,1577.3,2.24812788]
[1745258710695,3.21731596,1577.4,1577.1,0.00951596]
[1745258710999,4.47571,1577.2,1577.1,0.00951596]
[1745258711190,1.26815,1576.9,1576.8,8.64931]
[1745258711390,3.2078,1576.9,1576.8,8.64931]
[1745258711586,4.47595,1576.9,1576.8,10.89743788]
[1745258712089,3.2078,1576.9,1576.8,10.89743788]
[1745258712290,4.47586,1577.1,1577.0,1.26807]
[1745258712487,4.47586,1577.1,1576.5,3.2078]
[1745258712488,3.2078,1576.8,1575.4,5.3975]
[1745258712700,3.2078,1576.0,1575.6,2.2009]
[1745258712888,4.47691,1575.8,1575.7,2.0694]
[1745258713199,9.3538,1575.8,1575.7,3.33852]
[1745258713995,10.62284,1575.8,1575.7,3.33852]
[1745258714196,4.47684,1575.8,1575.7,3.33852]
[1745258714396,3.2078,1575.8,1575.7,3.33852]
[1745258714796,4.47684,1575.8,1575.7,2.0694]
[1745258715302,3.2078,1575.8,1575.7,2.0694]
[1745258715497,4.47684,1575.8,1575.7,2.0694]
[1745258716099,3.2078,1575.8,1575.7,3.33852]
[1745258716606,4.47684,1575.8,1575.7,2.0694]
[1745258716902,6.63534,1575.8,1575.7,2.0694]
[1745258718392,6.63534,1575.8,1575.7,3.33852]
[1745258718797,4.47684,1575.8,1575.7,3.33852]
[1745258719194,4.47684,1575.8,1575.7,2.0694]
[1745258719408,6.65664,1575.8,1575.7,2.0694]
[1745258719595,1.26912,1575.7,1575.6,0.00951596]
[1745258719801,3.1731,1575.6,1575.0,3.17419]
[1745258720003,4.47721,1575.4,1575.3,1.26942]
[1745258720204,3.2078,1575.4,1575.3,1.26942]
[1745258720402,3.4491,1575.5,1575.4,1.26936]
[1745258720607,1.26944,1575.3,1575.2,3.48136]
[1745258720906,4.4772,1575.4,1575.3,1.26944]
[1745258721306,1.26944,1575.3,1575.2,3.48136]
[1745258721505,1.26944,1575.3,1575.2,2.2119]
[1745258721802,3.38904,1575.3,1575.2,2.2119]
[1745258722007,1.26952,1575.2,1575.1,0.00608798]
[1745258722206,6.59692,1575.2,1575.1,0.00608798]
[1745258722705,11.59692,1575.2,1575.1,0.00608798]
[1745258723209,17.74292,1575.2,1575.1,0.00608798]
[1745258723514,3.17437,1575.0,1574.5,1.27007]
[1745258723814,1.26996,1574.7,1574.6,1.27]
[1745258724016,3.2078,1574.8,1574.2,3.17578]
[1745258724309,4.47788,1574.6,1574.5,1.27008]
[1745258724707,1.27014,1574.5,1574.4,1.27014]
[1745258724905,3.2078,1574.6,1574.3,2.1152]
[1745258725105,2.1508,1574.5,1574.3,2.1152]
[1745258725416,1.27017,1574.4,1574.3,3.38541]
[1745258725612,1.27017,1574.4,1574.3,3.38538]
[1745258726121,2.1508,1574.5,1574.4,1.27017]
[1745258726422,1.27009,1574.5,1574.4,2.1152]
[1745258726616,5.3586,1574.6,1574.2,3.2078]
[1745258726823,3.17583,1574.2,1573.5,8.37181121]
[1745258727016,4.47861,1573.6,1573.5,8.37181121]
[1745258727923,6.48621,1573.6,1573.5,8.37181121]
[1745258728421,1.2709,1573.5,1573.3,3.44451]
[1745258728620,5.2154,1573.4,1573.0,8.66421]
[1745258728816,5.2154,1573.4,1573.1,2.1735]
[1745258729117,6.48642,1573.4,1573.2,1.27109]
[1745258729316,6.48641,1573.4,1573.2,1.27114]
[1745258729519,6.48641,1573.4,1573.1,2.1735]
[1745258729716,6.48641,1573.4,1573.0,1.27125]
[1745258729717,3.2078,1573.2,1573.0,1.27125]
[1745258729922,3.2078,1573.2,1573.1,1.27122]
[1745258730118,3.2078,1573.2,1572.9,2.1735]
[1745258730312,3.2078,1573.2,1573.0,1.27124]
[1745258730313,1.27122,1573.1,1573.0,1.27124]
[1745258730623,3.2078,1573.2,1573.1,1.27122]
[1745258733024,3.38358,1573.4,1573.3,1.27106]
[1745258733214,5.3204,1573.4,1573.3,1.27106]
[1745258733418,3.2078,1573.4,1573.3,6.27106]
[1745258733715,96.882,1574.5,1573.8,1.27065]
[1745258733920,6.62986,1574.2,1573.8,3.17651]
[1745258734118,4.47816,1574.2,1573.9,2.0143]
[1745258734423,6.38406,1574.0,1573.6,1.27075]
[1745258734616,3.2078,1573.8,1573.7,1.27073]
[1745258735022,0.00951596,1573.9,1573.8,1.27065]
[1745258735320,0.00951596,1573.9,1573.8,11.98375]
[1745258735523,0.00951596,1573.9,1573.8,13.77595]
[1745258736619,3.2078,1574.4,1574.1,1.27041]
[1745258736824,3.2078,1574.6,1574.5,1.27009]
[1745258737423,15.02739268,1574.9,1574.7,1.26989]
[1745258737622,11.47436268,1574.9,1574.8,1.26985]
[1745258737813,8.26656268,1574.9,1574.8,1.26985]
[1745258738323,14.53638268,1574.9,1574.7,2.1744]
[1745258738523,4.47765,1574.8,1574.7,2.1744]
[1745258738723,6.52955,1574.8,1574.6,1.27950596]
[1745258738922,5.2597,1574.8,1574.7,1.26993]
[1745258739122,3.2078,1574.8,1574.7,3.44433]
[1745258739319,3.2078,1574.8,1574.7,2.1744]
[1745258739527,3.2078,1574.8,1574.7,3.44433]
[1745258742621,3.2078,1574.8,1574.7,2.1744]
[1745258742818,4.47765,1574.8,1574.7,2.1744]
[1745258743225,1.26993,1574.7,1574.6,0.00951596]
[1745258743527,3.34713,1574.7,1574.6,0.00951596]
[1745258743826,3.34713,1574.7,1574.6,1.27952596]
[1745258744023,2.0772,1574.7,1574.6,1.27952596]
[1745258744223,4.47768,1574.8,1574.6,0.00951596]
[1745258744529,6.55488,1574.8,1574.6,1.27950596]
[1745258744830,1.26993,1574.7,1574.6,1.27952596]
[1745258745124,1.26993,1574.7,1574.6,1.27950596]
[1745258745728,1.26993,1574.7,1574.6,0.00951596]
[1745258745927,6.67082,1574.8,1574.6,3.48237596]
[1745258746127,6.67082,1574.8,1574.7,2.2029]
[1745258747129,3.2078,1574.8,1574.7,3.47283]
[1745258747529,0.00951596,1575.0,1574.9,1.26976]
[1745258748030,1.27919596,1575.0,1574.9,1.26976]
[1745258748429,0.00951596,1575.0,1574.9,1.26976]
[1745258748631,1.27919596,1575.0,1574.9,1.26976]
[1745258748828,0.00951596,1575.0,1574.9,1.26976]
[1745258749129,1.2698,1574.9,1574.8,1.26978]
[1745258749332,1.26985,1574.8,1574.7,8.96276]
[1745258749531,1.26983,1574.9,1574.8,1.26981]
[1745258749829,3.54353,1574.9,1574.8,1.26981]
[1745258750025,1.26983,1574.9,1574.8,1.26981]
[1745258750229,4.48706596,1575.0,1574.8,1.26978]
[1745258750431,4.48706596,1575.0,1574.9,2.2053]
[1745258753026,4.48706596,1575.0,1574.6,4.48728596]
[1745258753027,3.21731596,1575.0,1574.6,4.48728596]
[1745258753231,1.26993,1574.7,1574.6,0.00951596]
[1745258753531,1.26993,1574.7,1574.6,1.27952596]
[1745258753723,4.47769,1574.8,1574.7,1.26993]
[1745258753918,1.26989,1574.8,1574.7,3.57613]
[1745258754134,3.21731596,1575.0,1574.9,1.26976]
[1745258754335,4.48699596,1575.0,1574.9,1.26976]
[1745258754525,3.21731596,1575.0,1574.9,1.26976]
[1745258755032,4.48699596,1575.0,1574.9,1.26976]
[1745258755435,3.21731596,1575.0,1574.9,1.26976]
[1745258755733,0.00951596,1575.0,1574.9,1.26976]
[1745258756125,1.27919596,1575.0,1574.9,1.26976]
[1745258758136,1.27919596,1575.0,1574.9,3.64616]
[1745258759735,0.00951596,1575.0,1574.9,3.64616]
[1745258759932,1.27919596,1575.0,1574.9,3.64616]
[1745258760134,0.00951596,1575.0,1574.9,3.64616]
[1745258760329,1.27919596,1575.0,1574.9,3.64616]
[1745258762038,3.58779596,1575.0,1574.9,3.64616]
[1745258762438,3.17442,1574.9,1574.6,0.00951596]
[1745258762630,1.26993,1574.7,1574.6,3.46162596]
[1745258763035,3.57853,1574.7,1574.6,1.27952596]
[1745258764241,2.3086,1574.7,1574.6,1.27952596]
[1745258764540,2.3086,1574.7,1574.6,3.54172596]
[1745258764732,3.57853,1574.7,1574.6,3.54172596]
[1745258765732,3.57853,1574.7,1574.6,1.27952596]
[1745258767138,1.27017,1574.4,1574.3,1.27025]
[1745258767338,3.2078,1574.5,1574.4,1.27013]
[1745258767526,4.47789,1574.5,1574.4,1.27013]
[1745258767732,1.27009,1574.5,1574.4,1.27013]
[1745258768141,1.27007,1574.6,1574.5,1.27007]
[1745258768338,1.2701,1574.5,1574.4,1.27009]
[1745258768538,1.2701,1574.5,1574.4,3.62769]
[1745258768933,1.27006,1574.6,1574.5,1.27005]
[1745258769841,6.78637,1574.7,1574.6,1.27001]
[1745258770037,1.27006,1574.6,1574.5,1.27002]
[1745258770638,5.5164,1574.7,1574.4,3.62773]
[1745258770639,1.27009,1574.5,1574.4,3.62773]
[1745258771146,11.86642,1574.7,1574.4,3.62773]
[1745258771147,1.27007,1574.6,1574.5,1.27002]
[1745258771436,8.69141,1574.7,1574.4,2.3576]
[1745258771437,5.5164,1574.7,1574.6,1.27001]
[1745258771637,4.47759,1574.9,1574.4,11.91617]
[1745258771939,0.00951596,1575.0,1574.9,1.26976]
[1745258772633,0.00951596,1575.0,1574.9,3.63106]
[1745258773832,1.27919596,1575.0,1574.9,3.63106]
[1745258774037,1.27919596,1575.0,1574.9,2.3613]
[1745258774347,0.00951596,1575.0,1574.9,3.63106]
[1745258775042,13.86586268,1575.5,1574.9,7.3613]
[1745258775339,8.26656268,1575.5,1575.4,4.47716]
[1745258775751,8.26656268,1575.5,1575.4,45.27716]
[1745258775939,8.26656268,1575.5,1575.4,47.68206]
[1745258777540,0.00951596,1575.6,1575.5,1.26928]
[1745258777736,0.00951596,1575.6,1575.5,8.47298]
[1745258777942,0.00951596,1575.6,1575.5,13.47298]
[1745258778242,5.96e-06,1575.6,1575.5,13.47298]
[1745258779151,5.96e-06,1575.6,1575.5,54.27298]
[1745258779648,3.7511346,1576.3,1575.5,54.27298]
[1745258779649,0.1920846,1576.3,1576.2,1.26872]
[1745258780240,1.26856,1576.4,1576.3,1.2686]
[1745258780542,3.55893,1576.5,1576.4,1.26856]
[1745258780748,2.2904,1576.5,1576.4,1.26856]
[1745258780935,7.78991596,1576.6,1576.3,0.00951596]
[1745258781140,9.05837596,1576.6,1576.4,1.26852]
[1745258781445,7.78991596,1576.6,1576.4,3.53724]
[1745258781656,3.55888,1576.5,1576.4,3.53726]
[1745258781841,2.2904,1576.5,1576.4,3.53726]
[1745258782733,2.2904,1576.5,1576.4,2.2687]
[1745258782936,3.55888,1576.5,1576.4,2.2687]
[1745258783140,3.55888,1576.5,1576.3,1.27810596]
[1745258783350,4.47636,1576.4,1576.3,0.00951596]
[1745258783538,6.72206,1576.4,1576.3,0.00951596]
[1745258783743,11.72206,1576.4,1576.3,0.00951596]
[1745258784044,6.72206,1576.4,1576.3,0.00951596]
[1745258784243,1.26876,1576.2,1575.9,7.5575]
[1745258784443,11.5995,1576.4,1576.1,1.2688]
[1745258784647,1.26868,1576.3,1576.1,1.2688]
[1745258784945,11.5995,1576.4,1575.9,7.5575]
[1745258784946,1.2688,1576.1,1575.9,7.5575]
[1745258785247,1.26888,1576.0,1575.9,2.2295]
[1745258785448,1.26896,1575.9,1575.8,0.00951596]
[1745258785643,3.69586,1575.9,1575.8,0.00951596]
[1745258785850,1.26918,1575.7,1575.5,1.26924]
[1745258786046,2.4269,1575.6,1575.5,1.26924]
[1745258786354,1.26912,1575.7,1575.4,5.327]
[1745258786654,3.69602,1575.7,1575.6,1.2692]
[1745258786842,1.26898,1575.9,1575.5,3.1732]
[1745258787043,1.26898,1575.9,1575.7,1.26908]
[1745258787044,0.00951596,1575.8,1575.7,1.26908]
[1745258788652,0.00951596,1575.8,1575.7,4.47688]
[1745258789043,0.00951596,1575.8,1575.7,14.63188]
[1745258789242,10.10808174,1576.3,1575.7,13.3628]
[1745258789439,10.10808174,1576.3,1576.2,1.26872]
[1745258789946,1.26872,1576.2,1576.1,6.42377]
[1745258790153,3.55552,1576.2,1576.1,6.42377]
[1745258790344,2.2868,1576.2,1576.0,1.26883]
[1745258790545,1.2688,1576.1,1576.0,42.06883]
[1745258790851,2.2868,1576.2,1576.0,42.06882]
[1745258791053,1.2688,1576.1,1576.0,1.26882]
[1745258791247,1.26882,1576.1,1576.0,1.26884]
[1745258791447,1.26893,1576.0,1575.9,1.26894]
[1745258791648,2.3574,1576.0,1575.9,1.26894]
[1745258792241,1.26875,1576.2,1576.1,1.26877]
[1745258792446,1.26884,1576.1,1575.8,5.155]
[1745258792647,3.2078,1576.1,1575.8,1.26896]
[1745258792854,1.26896,1575.9,1575.8,1.26896]
[1745258793162,1.26898,1575.9,1575.8,1.269]
[1745258793453,3.62632,1576.0,1575.8,1.26897]
[1745258793647,1.26896,1575.9,1575.8,1.26897]
[1745258793849,5.5265,1576.1,1575.7,3.2078]
[1745258794050,1.26883,1576.1,1575.8,3.17253]
[1745258794258,4.47662,1576.1,1576.0,1.26888]
[1745258794450,3.2078,1576.1,1575.7,50.35336]
[1745258794651,4.47664,1576.1,1576.0,1.26888]
[1745258795052,4.47663,1576.1,1576.0,1.26888]
[1745258795251,1.26888,1576.0,1575.9,1.26889]
[1745258795452,10.62267,1576.1,1576.0,1.26888]
[1745258795650,6.146,1576.1,1576.0,1.26888]
[1745258795849,6.146,1576.1,1576.0,6.26888]
[1745258796261,0.00951596,1576.3,1576.2,1.26872]
[1745258796464,1.26841,1576.6,1576.3,3.17153]
[1745258796645,1.26841,1576.6,1576.5,1.26842]
[1745258797050,1.26844,1576.6,1576.5,1.26845]
[1745258797249,7.41444,1576.6,1576.5,1.26845]
[1745258797958,6.146,1576.6,1576.5,1.26845]
[1745258798262,0.00951596,1576.7,1576.6,1.2684]
[1745258799257,0.00951596,1576.7,1576.6,6.2684]
[1745258799859,5.96e-06,1576.7,1576.6,8.5105]
[1745258800060,5.96e-06,1576.7,1576.6,11.36414654]
[1745258800855,4.4755,1577.5,1577.4,1.26775]
[1745258801060,1.26762,1577.6,1577.5,1.26767]
[1745258801248,3.2078,1577.7,1577.5,1.26767]
[1745258801451,1.26759,1577.6,1577.4,1.26768]
[1745258801653,1.26773,1577.5,1577.3,3.50409]
[1745258801853,1.26773,1577.5,1577.3,2.2363]
[1745258802060,1.26773,1577.5,1577.3,3.50408]
[1745258802360,6.146,1577.5,1577.4,4.47555]
[1745258802562,6.146,1577.5,1577.4,6.71185]
[1745258802951,6.146,1577.5,1577.4,3.50405]
[1745258803159,6.146,1577.5,1577.4,2.2363]
[1745258803453,6.146,1577.5,1577.4,1.26775]
[1745258804251,0.00951596,1577.6,1577.5,1.26767]
[1745258804455,0.00951596,1577.6,1577.5,8.86307]
[1745258806149,6.15551596,1577.6,1577.5,2.4434]
[1745258806349,6.15551596,1577.6,1577.4,9.62751]
[1745258806552,6.15551596,1577.6,1577.5,1.26767]
[1745258806849,6.15551596,1577.6,1577.5,3.73757]
[1745258807050,7.42310596,1577.6,1577.5,2.4699]
[1745258807251,6.15551596,1577.6,1577.5,3.73757]
[1745258807452,1.26767,1577.5,1577.2,44.01731596]
[1745258807648,12.14286596,1577.6,1577.4,1.26775]
[1745258807862,1.26767,1577.5,1577.3,1.26778]
[1745258808057,10.87521596,1577.6,1577.5,1.26767]
[1745258809056,8.49471596,1577.6,1577.5,1.26767]
[1745258809251,6.15551596,1577.6,1577.5,1.26767]
[1745258809661,6.15551596,1577.6,1577.5,3.68377]
[1745258809963,6.15551596,1577.6,1577.5,8.83377]
[1745258810164,6.9367,1578.0,1577.9,1.26735]